bitfinex/quotes_BTCUSD_20241130
["timestamp","ask_amount","ask_price","bid_price","bid_amount"]
[1732972135151,0.13217793,96626.0,96625.0,0.0008634]
[1732972136050,0.13117793,96626.0,96625.0,0.0008634]
[1732972136489,0.13317793,96626.0,96625.0,0.0008634]
[1732972137345,0.13317793,96626.0,96625.0,0.1286634]
[1732972137604,0.13017793,96626.0,96625.0,0.1286634]
[1732972137812,0.13317793,96626.0,96625.0,0.1286634]
[1732972138663,0.13117793,96626.0,96625.0,0.1286634]
[1732972138916,0.13317793,96626.0,96625.0,0.1286634]
[1732972139352,0.13117793,96626.0,96625.0,0.1286634]
[1732972139783,0.12817793,96626.0,96625.0,0.1286634]
[1732972141069,0.12917793,96626.0,96625.0,0.1286634]
[1732972143604,0.12760406,96626.0,96625.0,0.1286634]
[1732972148540,0.12760406,96626.0,96625.0,0.0008634]
[1732972148951,0.10460406,96626.0,96625.0,0.0008634]
[1732972149365,0.10360406,96626.0,96625.0,0.0008634]
[1732972156096,0.12660406,96626.0,96625.0,0.0008634]
[1732972156723,0.25430406,96626.0,96625.0,0.0008634]
[1732972156936,0.26430406,96626.0,96625.0,0.0008634]
[1732972157142,0.2647039,96626.0,96625.0,0.0008634]
[1732972158828,0.2697039,96626.0,96625.0,0.0008634]
[1732972159047,0.26930406,96626.0,96625.0,0.0008634]
[1732972159261,0.25930406,96626.0,96625.0,0.0008634]
[1732972159706,0.26030406,96626.0,96625.0,0.0008634]
[1732972160134,0.25930406,96626.0,96625.0,0.0008634]
[1732972160335,0.26830406,96626.0,96625.0,0.0008634]
[1732972163243,0.11760406,96626.0,96625.0,0.0008634]
[1732972163474,0.11917793,96626.0,96625.0,0.0008634]
[1732972163963,0.11917793,96626.0,96625.0,0.0773634]
[1732972164416,0.11417793,96626.0,96625.0,0.0773634]
[1732972164650,0.11417793,96626.0,96625.0,0.0783634]
[1732972164651,0.10517793,96626.0,96625.0,0.0783634]
[1732972165341,0.00168693,96626.0,96625.0,0.0783634]
[1732972165784,0.103491,96627.0,96625.0,0.0783634]
[1732972166207,0.00167209,96626.0,96625.0,0.0783634]
[1732972166431,0.206975,96630.0,96625.0,0.0783634]
[1732972166640,0.00167209,96629.0,96625.0,0.0783634]
[1732972166840,0.10349,96628.0,96625.0,0.0783634]
[1732972167058,0.20695,96642.0,96625.0,0.0783634]
[1732972167059,0.206959,96638.0,96626.0,0.10284521]
[1732972167303,0.103483,96634.0,96626.0,0.20633621]
[1732972167522,0.20863609,96635.0,96626.0,0.20633621]
[1732972167523,0.103484,96633.0,96626.0,0.20633621]
[1732972167733,0.10515818,96633.0,96626.0,0.20633621]
[1732972167942,0.001,96629.0,96626.0,0.20633621]
[1732972168388,0.103485,96632.0,96626.0,0.20633621]
[1732972168601,0.00167418,96631.0,96626.0,0.20633621]
[1732972169013,0.103485,96632.0,96626.0,0.20633621]
[1732972169232,0.00167418,96631.0,96626.0,0.10284521]
[1732972169500,0.103487,96630.0,96626.0,0.10484521]
[1732972169718,0.103486,96632.0,96626.0,0.10484521]
[1732972169933,0.00167418,96629.0,96626.0,0.10484521]
[1732972170147,0.0017272,96636.0,96626.0,0.10484521]
[1732972170361,0.00167418,96628.0,96626.0,0.10484521]
[1732972170575,0.103488,96630.0,96626.0,0.10284521]
[1732972170772,0.0016735,96627.0,96626.0,0.10284521]
[1732972170984,0.103484,96633.0,96626.0,0.10384521]
[1732972171183,0.00167334,96627.0,96626.0,0.10384521]
[1732972171414,0.103491,96626.0,96625.0,0.0008634]
[1732972171830,0.10516434,96626.0,96625.0,0.0008634]
[1732972172675,0.10516434,96626.0,96625.0,0.0018634]
[1732972174412,0.10616434,96626.0,96625.0,0.0018634]
[1732972183321,0.12916434,96626.0,96625.0,0.0018634]
[1732972183980,0.12916434,96626.0,96625.0,0.0008634]
[1732972184189,0.12916434,96626.0,96625.0,0.0018634]
[1732972184867,0.12816434,96626.0,96625.0,0.0008634]
[1732972185079,0.12916434,96626.0,96625.0,0.0008634]
[1732972186149,0.21266434,96626.0,96625.0,0.0008634]
[1732972186803,0.21366434,96626.0,96625.0,0.0008634]
[1732972187020,0.21066434,96626.0,96625.0,0.0008634]
[1732972187437,0.12916434,96626.0,96625.0,0.0008634]
[1732972188933,0.13016434,96626.0,96625.0,0.0008634]
[1732972189144,0.12916434,96626.0,96625.0,0.0008634]
[1732972189344,0.12816434,96626.0,96625.0,0.0008634]
[1732972189516,0.13016434,96626.0,96625.0,0.0008634]
[1732972189724,0.12816434,96626.0,96625.0,0.0008634]
[1732972190163,0.12916434,96626.0,96625.0,0.0008634]
[1732972190597,0.15062858,96626.0,96625.0,0.0008634]
[1732972191019,0.14962858,96626.0,96625.0,0.0008634]
[1732972191451,0.15235598,96626.0,96625.0,0.0008634]
[1732972191903,0.15135598,96626.0,96625.0,0.0008634]
[1732972192558,0.15335598,96626.0,96625.0,0.0008634]
[1732972192976,0.15135598,96626.0,96625.0,0.0008634]
[1732972193174,0.15235598,96626.0,96625.0,0.0008634]
[1732972193644,0.15135598,96626.0,96625.0,0.0008634]
[1732972193877,0.15435598,96626.0,96625.0,0.0008634]
[1732972194324,0.15335598,96626.0,96625.0,0.0008634]
[1732972194757,0.15435598,96626.0,96625.0,0.0008634]
[1732972195177,0.15335598,96626.0,96625.0,0.0008634]
[1732972195390,0.15035598,96626.0,96625.0,0.0008634]
[1732972195598,0.15135598,96626.0,96625.0,0.0008634]
[1732972195815,0.15235598,96626.0,96625.0,0.0008634]
[1732972196019,0.15135598,96626.0,96625.0,0.0008634]
[1732972196435,0.15335598,96626.0,96625.0,0.0008634]
[1732972196636,0.15135598,96626.0,96625.0,0.0008634]
[1732972197087,0.15235598,96626.0,96625.0,0.0008634]
[1732972197544,0.15135598,96626.0,96625.0,0.0008634]
[1732972197749,0.15235598,96626.0,96625.0,0.0008634]
[1732972198184,0.15135598,96626.0,96625.0,0.0008634]
[1732972198597,0.15235598,96626.0,96625.0,0.0008634]
[1732972198817,0.15135598,96626.0,96625.0,0.0008634]
[1732972199031,0.15035598,96626.0,96625.0,0.0008634]
[1732972199250,0.126492,96625.0,96624.0,0.0072634]
[1732972199477,0.103506,96612.0,96603.0,0.0801634]
[1732972199883,0.10517275,96612.0,96603.0,0.0801634]
[1732972200713,0.10517275,96612.0,96611.0,0.00092314]
[1732972202000,0.10517275,96612.0,96611.0,0.00192314]
[1732972202930,0.10517275,96612.0,96611.0,0.04852314]
[1732972203169,0.00166675,96612.0,96611.0,0.04852314]
[1732972203658,0.10517132,96612.0,96611.0,0.00092314]
[1732972203889,0.10517132,96612.0,96611.0,0.00192314]
[1732972205306,0.12817132,96612.0,96611.0,0.00092314]
[1732972205553,0.12917132,96612.0,96611.0,0.00092314]
[1732972205783,0.12817132,96612.0,96611.0,0.00092314]
[1732972206258,0.13017132,96612.0,96611.0,0.00092314]
[1732972206977,0.13217132,96612.0,96611.0,0.00092314]
[1732972207534,0.13317132,96612.0,96611.0,0.00092314]
[1732972208024,0.13217132,96612.0,96611.0,0.00092314]
[1732972209013,0.12817132,96612.0,96611.0,0.00092314]
[1732972209744,0.12917132,96612.0,96611.0,0.00092314]
[1732972209984,0.12817132,96612.0,96611.0,0.00092314]
[1732972210224,0.13017132,96612.0,96611.0,0.00092314]
[1732972210467,0.12817132,96612.0,96611.0,0.00092314]
[1732972210706,0.12917132,96612.0,96611.0,0.00092314]
[1732972210958,0.13117132,96612.0,96611.0,0.00092314]
[1732972211214,0.13017132,96612.0,96611.0,0.00092314]
[1732972211443,0.13117132,96612.0,96611.0,0.00092314]
[1732972222500,0.12917132,96612.0,96611.0,0.00092314]
[1732972222723,0.13017132,96612.0,96611.0,0.00092314]
[1732972222939,0.12917132,96612.0,96611.0,0.00092314]
[1732972223415,0.13017132,96612.0,96611.0,0.00092314]
[1732972223634,0.13117132,96612.0,96611.0,0.00092314]
[1732972223852,0.13317132,96612.0,96611.0,0.00092314]
[1732972224269,0.13217132,96612.0,96611.0,0.00092314]
[1732972224499,0.13317132,96612.0,96611.0,0.00092314]
[1732972225137,0.11017132,96612.0,96611.0,0.00092314]
[1732972225778,0.10917132,96612.0,96611.0,0.00092314]
[1732972225998,0.10617132,96612.0,96611.0,0.00092314]
[1732972226428,0.10517132,96612.0,96611.0,0.00092314]
[1732972226846,0.12817132,96612.0,96611.0,0.00192314]
[1732972227059,0.12917132,96612.0,96611.0,0.00192314]
[1732972227283,0.12817132,96612.0,96611.0,0.00092314]
[1732972229012,0.12917132,96612.0,96611.0,0.00092314]
[1732972229438,0.12817132,96612.0,96611.0,0.00092314]
[1732972229650,0.12917132,96612.0,96611.0,0.00092314]
[1732972229872,0.13017132,96612.0,96611.0,0.00092314]
[1732972230259,0.13117132,96612.0,96611.0,0.00092314]
[1732972231769,0.13205252,96612.0,96611.0,0.00092314]
[1732972233053,0.13205252,96612.0,96611.0,0.00122725]
[1732972235129,0.21345252,96612.0,96611.0,0.00122725]
[1732972238634,0.13205252,96612.0,96611.0,0.00122725]
[1732972260311,0.17935252,96612.0,96611.0,0.00122725]
[1732972264597,0.13205252,96612.0,96611.0,0.00122725]
[1732972268883,0.13205252,96612.0,96611.0,0.00140563]
[1732972270961,0.10905252,96612.0,96611.0,0.00140563]
[1732972278703,0.00554652,96612.0,96611.0,0.00140563]
[1732972278913,0.00554652,96612.0,96611.0,0.33625784]
[1732972279129,0.00554652,96612.0,96611.0,0.33625787]
[1732972279337,0.003,96612.0,96611.0,0.33625789]
[1732972279542,0.001,96612.0,96611.0,0.33625789]
[1732972279750,0.103496,96622.0,96612.0,0.0479]
[1732972279968,0.103495,96623.0,96615.0,0.0479]
[1732972280219,0.103498,96620.0,96616.0,0.10284521]
[1732972280432,0.10588135,96621.0,96616.0,0.10332776]
[1732972280649,0.00238435,96619.0,96616.0,0.10332776]
[1732972280859,0.103497,96621.0,96616.0,0.10332776]
[1732972281082,0.00238435,96618.0,96616.0,0.10332776]
[1732972281297,0.103497,96621.0,96616.0,0.10332776]
[1732972281524,0.00238435,96617.0,96616.0,0.10332776]
[1732972281958,0.1035,96618.0,96616.0,0.10332776]
[1732972282168,0.00238435,96617.0,96616.0,0.10332776]
[1732972282420,0.00238435,96617.0,96616.0,0.10332775]
[1732972282632,0.103497,96621.0,96616.0,0.10332775]
[1732972282813,0.00238435,96617.0,96616.0,0.10332775]
[1732972283046,0.00238435,96617.0,96616.0,0.10432775]
[1732972283441,0.00238435,96617.0,96616.0,0.10332775]
[1732972283669,0.206986,96625.0,96616.0,0.10332775]
[1732972283875,0.00238435,96617.0,96616.0,0.10432775]
[1732972284076,0.103497,96621.0,96616.0,0.10432775]
[1732972284332,0.00238435,96617.0,96616.0,0.10432775]
[1732972284452,0.001,96617.0,96616.0,0.10432775]
[1732972284654,0.00338435,96617.0,96616.0,0.10432775]
[1732972284856,0.001,96617.0,96616.0,0.10432775]
[1732972285066,0.00338435,96617.0,96616.0,0.10332775]
[1732972285286,0.001,96617.0,96616.0,0.10332775]
[1732972285496,0.00338435,96617.0,96616.0,0.10432775]
[1732972286326,0.10688535,96617.0,96616.0,0.10432775]
[1732972286747,0.00338435,96617.0,96616.0,0.10432775]
[1732972287806,0.10688535,96617.0,96616.0,0.10432775]
[1732972289259,0.10688535,96617.0,96616.0,0.10332775]
[1732972289667,0.10588535,96617.0,96616.0,0.10432775]
[1732972290125,0.10588535,96617.0,96616.0,0.10332775]
[1732972290529,0.00238435,96617.0,96616.0,0.10332775]
[1732972290939,0.103499,96619.0,96616.0,0.10332775]
[1732972291139,0.00238928,96617.0,96616.0,0.10332775]
[1732972291337,0.1035,96618.0,96616.0,0.10332775]
[1732972291586,0.10589028,96617.0,96616.0,0.10432775]
[1732972292001,0.10589028,96617.0,96616.0,0.10332775]
[1732972292415,0.10589028,96617.0,96616.0,0.10432775]
[1732972295448,0.10589028,96617.0,96616.0,0.00148254]
[1732972295650,0.23289028,96617.0,96616.0,0.00148254]
[1732972296358,0.23289028,96617.0,96616.0,0.00048254]
[1732972296587,0.10589028,96617.0,96616.0,0.00048254]
[1732972299039,0.10589028,96617.0,96616.0,0.00148254]
[1732972300221,0.10589028,96617.0,96616.0,0.00048254]
[1732972301593,0.10589028,96617.0,96616.0,0.00148254]
[1732972304772,0.10589028,96617.0,96616.0,0.00048254]
[1732972305184,0.10589028,96617.0,96616.0,0.00148254]
[1732972306457,0.00238928,96617.0,96616.0,0.00148254]
[1732972306627,0.10589028,96617.0,96616.0,0.00148254]
[1732972306843,0.206992,96622.0,96616.0,0.00148254]
[1732972307052,0.00238914,96617.0,96616.0,0.00148254]
[1732972307253,0.103501,96617.0,96616.0,0.00148254]
[1732972307583,0.10589014,96617.0,96616.0,0.00148254]
[1732972307796,0.10589014,96617.0,96616.0,0.00048254]
[1732972307993,0.10589014,96617.0,96616.0,0.00134594]
[1732972309159,0.10589014,96617.0,96616.0,0.00234594]
[1732972310371,0.00238914,96617.0,96616.0,0.00234594]
[1732972310935,0.103499,96619.0,96616.0,0.00234594]
[1732972311182,0.103501,96618.0,96616.0,0.00234594]
[1732972311427,0.00238914,96618.0,96616.0,0.00234594]
[1732972311899,0.103499,96619.0,96616.0,0.00134594]
[1732972312130,0.00238914,96617.0,96616.0,0.00234594]
[1732972312352,0.103499,96619.0,96616.0,0.00234594]
[1732972312585,0.00238914,96617.0,96616.0,0.00234594]
[1732972312850,0.103499,96619.0,96616.0,0.00134594]
[1732972313098,0.103499,96619.0,96616.0,0.00234594]
[1732972313323,0.00238914,96618.0,96616.0,0.00234594]
[1732972314282,0.00238914,96618.0,96616.0,0.00134594]
[1732972314483,0.00238914,96618.0,96616.0,0.00234594]
[1732972314989,0.0017274,96624.0,96620.0,0.103497]
[1732972315224,0.0017274,96624.0,96621.0,0.103496]
[1732972315425,0.0017274,96624.0,96621.0,0.10397854]
[1732972315900,0.0017274,96624.0,96621.0,0.00048254]
[1732972316141,0.0017274,96624.0,96623.0,0.103495]
[1732972316383,0.0017274,96624.0,96623.0,0.20865436]
[1732972318031,0.0047274,96624.0,96623.0,0.20865436]
[1732972318306,0.0027274,96624.0,96623.0,0.20865436]
[1732972318548,0.0017274,96624.0,96623.0,0.20865435]
[1732972318791,0.0027274,96624.0,96623.0,0.20865435]
[1732972319005,0.0047274,96624.0,96623.0,0.20865435]
[1732972319503,0.0017274,96624.0,96623.0,0.20865435]
[1732972319712,0.0027274,96624.0,96623.0,0.20965435]
[1732972324091,0.0027274,96624.0,96623.0,0.20965434]
[1732972324336,0.0027274,96624.0,96623.0,0.10615934]
[1732972324551,0.0027274,96624.0,96623.0,0.10432773]
[1732972324771,0.00511983,96624.0,96623.0,0.10432773]
[1732972324988,0.00511983,96624.0,96623.0,0.20782273]
[1732972325209,0.0027274,96624.0,96623.0,0.20782273]
[1732972325429,0.0027274,96624.0,96623.0,0.20965438]
[1732972329505,0.0027274,96624.0,96623.0,0.10432773]
[1732972332343,0.0027274,96624.0,96623.0,0.20782273]
[1732972332784,0.0027274,96624.0,96623.0,0.20868613]
[1732972333249,0.0027274,96624.0,96623.0,0.21051779]
[1732972338065,0.0023987,96624.0,96623.0,0.21051779]
[1732972338262,0.0023987,96624.0,96623.0,0.33391779]
[1732972338481,0.0023987,96624.0,96623.0,0.33208613]
[1732972339726,0.0023987,96624.0,96623.0,0.33200693]
[1732972350623,0.0023987,96624.0,96623.0,0.34296527]
[1732972355232,0.0023987,96624.0,96623.0,0.50296527]
[1732972359421,0.0023987,96624.0,96623.0,0.50196527]
[1732972359631,0.0013987,96624.0,96623.0,0.50396527]
[1732972360051,0.0023987,96624.0,96623.0,0.50696527]
[1732972360733,0.0023987,96624.0,96623.0,0.50496527]
[1732972360989,0.0023987,96624.0,96623.0,0.51496527]
[1732972362107,0.0023987,96624.0,96623.0,0.51796527]
[1732972362559,0.0023987,96624.0,96623.0,0.51496527]
[1732972362689,0.0023987,96624.0,96623.0,0.51696527]
[1732972363104,0.0013987,96624.0,96623.0,0.51396527]
[1732972363316,0.0013987,96624.0,96623.0,0.51696527]
[1732972366286,7e-07,96624.0,96623.0,0.51696527]
[1732972367997,0.0017274,96626.0,96625.0,0.402492]
[1732972368198,0.0017274,96626.0,96625.0,0.50574053]
[1732972369419,4e-07,96626.0,96625.0,0.50674053]
[1732972369635,8e-07,96630.0,96629.0,0.02]
[1732972369812,8e-07,96630.0,96629.0,0.95456748]
[1732972370042,8e-07,96630.0,96629.0,0.95273652]
[1732972370380,8e-07,96630.0,96629.0,1.31573652]
[1732972370793,8e-07,96630.0,96629.0,1.31973652]
[1732972371195,8e-07,96630.0,96629.0,2.67323652]
[1732972371623,8e-07,96630.0,96629.0,2.66923652]
[1732972372982,8e-07,96630.0,96629.0,2.67523652]
[1732972373227,8e-07,96630.0,96629.0,2.68423652]
[1732972374489,8e-07,96630.0,96629.0,2.68423651]
[1732972377394,0.0017272,96636.0,96635.0,0.273482]
[1732972377395,0.001688,96636.0,96635.0,0.273482]
[1732972377601,0.001688,96636.0,96635.0,0.50593051]
[1732972378221,0.001688,96636.0,96635.0,0.52893051]
[1732972378419,0.001688,96636.0,96635.0,0.53393051]
[1732972379603,0.002688,96636.0,96635.0,0.54193051]
[1732972380051,0.002688,96636.0,96635.0,0.38973051]
[1732972384503,0.002688,96636.0,96635.0,0.40095209]
[1732972385395,0.002688,96636.0,96635.0,0.53015209]
[1732972389060,0.00256419,96636.0,96635.0,0.53015209]
[1732972389536,0.0017268,96659.0,96647.0,0.263469]
[1732972389776,0.0017268,96659.0,96647.0,0.3667175]
[1732972390461,0.0017268,96659.0,96647.0,0.3767175]
[1732972390864,0.0017268,96659.0,96647.0,0.3797175]
[1732972391106,0.0017268,96659.0,96647.0,0.3817175]
[1732972391517,0.00180115,96648.0,96647.0,0.3817175]
[1732972399450,0.00180115,96648.0,96647.0,0.39264099]
[1732972403122,0.00180115,96648.0,96647.0,0.39264098]
[1732972412830,0.00180115,96648.0,96647.0,0.94008041]
[1732972414062,0.00180115,96648.0,96647.0,0.39264097]
[1732972414783,0.05040115,96648.0,96647.0,0.9400804]
[1732972414945,0.05040115,96648.0,96647.0,0.39264097]
[1732972416171,0.00180115,96648.0,96647.0,0.39264097]
[1732972419161,0.0017268,96659.0,96647.0,0.51514097]
[1732972419372,8e-07,96659.0,96658.0,0.49880221]
[1732972419581,8e-07,96659.0,96658.0,0.52220548]
[1732972419796,0.00243412,96659.0,96658.0,0.52220547]
[1732972420438,9.2e-07,96660.0,96659.0,0.296456]
[1732972420628,9.2e-07,96660.0,96659.0,0.39970447]
[1732972422218,9.2e-07,96660.0,96659.0,0.39970446]
[1732972422842,0.00100092,96660.0,96659.0,0.40870446]
[1732972423051,0.00100092,96660.0,96659.0,0.39970446]
[1732972423474,0.00200092,96660.0,96659.0,0.40870446]
[1732972423625,9.2e-07,96660.0,96659.0,0.40870446]
[1732972423835,0.00100092,96660.0,96659.0,0.41570446]
[1732972425372,0.00100092,96660.0,96659.0,0.96277778]
[1732972425954,0.00100092,96660.0,96659.0,0.93977778]
[1732972426643,0.00100092,96660.0,96659.0,0.39270446]
[1732972427334,0.00100092,96660.0,96659.0,0.39270445]
[1732972427630,0.00100092,96660.0,96659.0,0.40382995]
[1732972428064,0.00337424,96660.0,96659.0,0.40382995]
[1732972428290,0.00100092,96660.0,96659.0,0.40382995]
[1732972428514,0.00337424,96660.0,96659.0,0.40382995]
[1732972428738,0.00100092,96660.0,96659.0,0.40382995]
[1732972428983,0.00337374,96660.0,96659.0,0.40382995]
[1732972430412,0.00510074,96660.0,96659.0,0.40382995]
[1732972434087,0.00743136,96660.0,96659.0,0.40382995]
[1732972437841,0.00743136,96660.0,96659.0,0.48592995]
[1732972438046,0.00743136,96660.0,96659.0,0.48592994]
[1732972438253,0.00743136,96660.0,96659.0,1.03300326]
[1732972438496,0.00743136,96660.0,96659.0,0.48592994]
[1732972439140,0.00743136,96660.0,96659.0,1.03311875]
[1732972439989,0.00743136,96660.0,96659.0,0.95101875]
[1732972440428,0.00743136,96660.0,96659.0,0.40382994]
[1732972442495,0.00743136,96660.0,96659.0,0.40469324]
[1732972443594,0.00643044,96660.0,96659.0,0.38869324]
[1732972443805,0.00743044,96660.0,96659.0,0.39569324]
[1732972444028,0.00843044,96660.0,96659.0,0.40469324]
[1732972444677,0.00743044,96660.0,96659.0,0.94288205]
[1732972444883,0.00743044,96660.0,96659.0,0.39569323]
[1732972445102,0.00743044,96660.0,96659.0,0.94488204]
[1732972445735,0.00843044,96660.0,96659.0,0.95088204]
[1732972446424,0.00253385,96660.0,96659.0,0.95088204]
[1732972449316,5.236459,96664.0,96663.0,0.02]
[1732972449317,5.23472259,96664.0,96663.0,0.02]
[1732972449531,5.23472259,96664.0,96663.0,0.37853117]
[1732972449731,5.23681917,96664.0,96663.0,0.37670043]
[1732972451561,5.23681917,96664.0,96663.0,0.38170043]
[1732972451975,5.23781917,96664.0,96663.0,0.39070042]
[1732972452714,5.23681917,96664.0,96663.0,0.37670042]
[1732972452943,5.23681917,96664.0,96663.0,0.38170042]
[1732972453158,5.23781917,96664.0,96663.0,0.39070042]
[1732972453369,5.23681917,96664.0,96663.0,0.38170042]
[1732972454365,5.23854577,96664.0,96663.0,0.37670042]
[1732972454588,5.23854577,96664.0,96663.0,0.38170042]
[1732972454800,5.23954577,96664.0,96663.0,0.39070042]
[1732972455019,5.23954577,96664.0,96663.0,0.38570042]
[1732972455242,5.23954577,96664.0,96663.0,0.37670042]
[1732972455463,5.24054577,96664.0,96663.0,0.39070042]
[1732972455907,5.23854577,96664.0,96663.0,0.37670042]
[1732972456133,5.23954577,96664.0,96663.0,0.38570042]
[1732972456387,5.23954577,96664.0,96663.0,0.39070042]
[1732972456824,5.24054577,96664.0,96663.0,0.39970042]
[1732972457923,5.24054577,96664.0,96663.0,0.39470042]
[1732972458157,5.24054577,96664.0,96663.0,0.38970042]
[1732972458372,5.23854577,96664.0,96663.0,0.37170042]
[1732972458592,5.23854577,96664.0,96663.0,0.38170042]
[1732972458808,5.23854577,96664.0,96663.0,0.36670042]
[1732972459037,5.23854577,96664.0,96663.0,0.37070042]
[1732972459926,5.23954577,96664.0,96663.0,0.37870042]
[1732972460820,5.23954577,96664.0,96663.0,0.38870042]
[1732972461500,5.23954577,96664.0,96663.0,0.38870041]
[1732972465699,5.23954577,96664.0,96663.0,0.93679224]
[1732972466750,5.23954577,96664.0,96663.0,0.93765544]
[1732972467846,5.23954577,96664.0,96663.0,0.38956361]
[1732972468207,5.23954577,96664.0,96663.0,0.93765544]
[1732972470245,5.23954577,96664.0,96663.0,0.38956361]
[1732972470476,5.23954577,96664.0,96663.0,0.93778533]
[1732972471440,5.23954577,96664.0,96663.0,0.38956361]
[1732972471893,5.23954577,96664.0,96663.0,0.93780043]
[1732972472130,5.23954577,96664.0,96663.0,0.38956361]
[1732972472577,5.23954577,96664.0,96663.0,0.93781308]
[1732972472812,5.23954577,96664.0,96663.0,0.38956361]
[1732972473268,5.23954577,96664.0,96663.0,0.93781305]
[1732972473504,5.23954577,96664.0,96663.0,0.38956361]
[1732972474127,5.23954577,96664.0,96663.0,0.93780843]
[1732972474336,5.23954577,96664.0,96663.0,0.38956361]
[1732972476979,5.23954577,96664.0,96663.0,0.3895636]
[1732972481892,5.23954577,96664.0,96663.0,4.1887726]
[1732972481893,5.21568598,96664.0,96663.0,4.1887726]
[1732972482170,4.98855798,96664.0,96663.0,3.2434636]
[1732972482383,4.98855798,96664.0,96663.0,3.24346359]
[1732972482605,4.92648798,96664.0,96663.0,3.24346359]
[1732972482827,4.88510798,96664.0,96663.0,2.17093459]
[1732972483266,4.88510798,96664.0,96663.0,2.11935259]
[1732972483706,4.76307925,96664.0,96663.0,2.10735258]
[1732972483939,4.76407925,96664.0,96663.0,2.11435258]
[1732972484178,4.76407925,96664.0,96663.0,2.12335258]
[1732972484411,4.76407925,96664.0,96663.0,2.11435258]
[1732972484623,4.76407925,96664.0,96663.0,2.12335258]
[1732972484854,4.76407925,96664.0,96663.0,1.89844258]
[1732972485332,4.76307925,96664.0,96663.0,1.89144258]
[1732972485566,4.76307925,96664.0,96663.0,1.89744258]
[1732972485801,4.76407925,96664.0,96663.0,1.89744258]
[1732972486534,4.76407925,96664.0,96663.0,2.10723258]
[1732972487722,4.76407925,96664.0,96663.0,2.12745262]
[1732972488417,4.68310094,96664.0,96663.0,2.12745262]
[1732972489173,4.59988418,96664.0,96663.0,2.12745262]
[1732972489402,4.57878646,96664.0,96663.0,2.12745262]
[1732972490548,4.57459268,96664.0,96663.0,2.12745262]
[1732972491977,4.57459268,96664.0,96663.0,2.12745261]
[1732972492435,4.52505601,96664.0,96663.0,2.12745261]
[1732972492679,4.52505601,96664.0,96663.0,2.21025261]
[1732972492680,4.42160601,96664.0,96663.0,2.21025261]
[1732972495646,4.42160601,96664.0,96663.0,2.20924744]
[1732972498498,4.40091601,96664.0,96663.0,2.20924744]
[1732972498707,4.35953601,96664.0,96663.0,2.20924744]
[1732972498910,4.33884601,96664.0,96663.0,2.20924744]
[1732972499130,4.31815601,96664.0,96663.0,2.20924744]
[1732972499336,4.29746601,96664.0,96663.0,2.20924744]
[1732972500619,4.23269127,96664.0,96663.0,2.20924744]
[1732972501964,4.15135167,96664.0,96663.0,2.20924744]
[1732972502191,4.13066167,96664.0,96663.0,2.20924744]
[1732972502393,4.10997167,96664.0,96663.0,2.20924744]
[1732972502789,4.06859167,96664.0,96663.0,2.20924744]
[1732972503016,3.98202452,96664.0,96663.0,2.20924744]
[1732972503684,3.92200773,96664.0,96663.0,0.51757844]
[1732972503916,3.85993773,96664.0,96663.0,2.55092444]
[1732972504158,3.85993773,96664.0,96663.0,2.47018544]
[1732972504384,3.85993773,96664.0,96663.0,1.97247844]
[1732972505812,3.81855773,96664.0,96663.0,1.97247844]
[1732972508171,3.79419013,96664.0,96663.0,1.97247844]
[1732972509346,3.28495013,96664.0,96663.0,1.97247844]
[1732972511244,3.28495013,96664.0,96663.0,1.88967844]
[1732972511466,3.26426013,96664.0,96663.0,1.88967844]
[1732972513940,3.26426013,96664.0,96663.0,1.7341744]
[1732972514160,3.39296013,96664.0,96663.0,0.3915584]
[1732972516329,3.26426013,96664.0,96663.0,0.3915584]
[1732972516551,3.26426013,96664.0,96663.0,0.4145584]
[1732972516737,3.26416906,96664.0,96663.0,0.4145584]
[1732972519047,3.17070681,96664.0,96663.0,0.4145584]
[1732972519276,3.14937906,96664.0,96663.0,0.4145584]
[1732972519524,3.14773642,96664.0,96663.0,0.41455839]
[1732972519743,3.08566642,96664.0,96663.0,0.41455839]
[1732972519967,3.04428642,96664.0,96663.0,0.41455839]
[1732972520661,3.02359642,96664.0,96663.0,0.41455839]
[1732972520874,3.00290642,96664.0,96663.0,0.41455839]
[1732972521090,2.96152642,96664.0,96663.0,0.41455839]
[1732972521307,2.94083642,96664.0,96663.0,0.41455839]
[1732972522000,2.85807642,96664.0,96663.0,0.41455839]
[1732972522230,2.83738642,96664.0,96663.0,0.41455839]
[1732972522458,2.83738642,96664.0,96663.0,2.71303639]
[1732972522681,2.81669642,96664.0,96663.0,2.54262439]
[1732972522911,2.73393642,96664.0,96663.0,1.94944639]
[1732972524558,2.71324642,96664.0,96663.0,1.94944639]
[1732972524807,2.60979642,96664.0,96663.0,1.92602639]
[1732972525020,2.54772642,96664.0,96663.0,1.97212639]
[1732972525971,2.46496642,96664.0,96663.0,1.97212639]
[1732972526158,2.44427642,96664.0,96663.0,1.97212639]
[1732972526902,2.36151642,96664.0,96663.0,1.97212639]
[1732972527404,2.34082642,96664.0,96663.0,1.97212639]
[1732972527825,2.32013642,96664.0,96663.0,1.97212639]
[1732972528254,2.27875642,96664.0,96663.0,1.92602639]
[1732972528470,2.23737642,96664.0,96663.0,1.92602639]
[1732972529119,2.19599642,96664.0,96663.0,1.92602639]
[1732972529776,2.09254642,96664.0,96663.0,1.92602639]
[1732972529984,2.03047642,96664.0,96663.0,1.92602639]
[1732972530644,1.93209611,96664.0,96663.0,1.92602639]
[1732972530856,1.80943191,96664.0,96663.0,1.92602639]
[1732972531067,1.78874191,96664.0,96663.0,1.92602639]
[1732972531725,1.76805191,96664.0,96663.0,1.92602639]
[1732972532150,1.72667191,96664.0,96663.0,1.92602639]
[1732972532353,1.68529191,96664.0,96663.0,1.92602639]
[1732972532847,1.60253191,96664.0,96663.0,1.92602639]
[1732972533163,1.58184191,96664.0,96663.0,1.92602639]
[1732972533684,1.56115191,96664.0,96663.0,1.92602639]
[1732972533916,1.47839191,96664.0,96663.0,1.92602639]
[1732972534794,1.45770191,96664.0,96663.0,1.92602639]
[1732972535262,1.39563191,96664.0,96663.0,1.92602639]
[1732972535490,1.37494191,96664.0,96663.0,1.92602639]
[1732972535733,1.35425191,96664.0,96663.0,1.92602639]
[1732972536200,1.17691637,96664.0,96663.0,1.92602639]
[1732972536433,1.03210181,96664.0,96663.0,1.92602639]
[1732972536651,0.9693163,96664.0,96663.0,1.97582639]
[1732972536859,0.9063463,96664.0,96663.0,1.97582639]
[1732972537088,0.8376563,96664.0,96663.0,1.97582639]
[1732972537306,0.0039219,96693.0,96692.0,0.01899483]
[1732972537532,0.04284495,96694.0,96693.0,0.27241483]
[1732972537754,0.04284495,96694.0,96693.0,0.37566319]
[1732972538637,0.04302422,96694.0,96693.0,0.37566319]
[1732972539563,0.00017927,96694.0,96693.0,0.37566319]
[1732972540206,0.00017927,96694.0,96693.0,0.40666319]
[1732972541371,0.00017927,96694.0,96693.0,0.41066319]
[1732972543373,0.00017927,96694.0,96693.0,0.41066318]
[1732972545154,0.00017927,96694.0,96693.0,0.42187509]
[1732972545395,0.00190567,96694.0,96693.0,0.42187509]
[1732972545620,0.00182154,96694.0,96693.0,0.42187509]